fUST/lending_fUST_20250405
["ID","MTS","AMOUNT","RATE_DAILY","PERIOD"]
[357160253,1743820239206,-500.0,0.00025466,14]
[357160254,1743820239219,-819.11564899,0.00025493,14]
[357160255,1743820239228,-2078.7336861,0.00025624,6]
[357160256,1743820239238,-155.98,0.000257,31]
[357160257,1743820239248,-155.98,0.000257,31]
[357160258,1743820239258,-155.98,0.000257,31]
[357160259,1743820239267,-155.98,0.000257,31]
[357160260,1743820239277,-150.04106085,0.00025973,2]
[357160261,1743820239286,-2755.92,0.00026,14]
[357160262,1743820239296,-2000.0,0.00026,2]
[357160263,1743820239305,-2000.0,0.00026,2]
[357160264,1743820239314,-5000.0,0.00026,2]
[357160265,1743820239324,-1347.799999,0.00026,2]
[357160266,1743820239333,-44092.35097432,0.00026,30]
[357160267,1743820239343,-151.0,0.00026,7]
[357160268,1743820239352,-869.81830722,0.00026021,2]
[357160269,1743820239362,-528.1715312,0.00026137,2]
[357160270,1743820239371,-200.0,0.00026146,120]
[357160271,1743820239381,-549.43,0.000262,30]
[357160272,1743820239391,-155.98,0.000262,31]
[357160273,1743820239400,-155.98,0.000262,31]
[357160274,1743820239410,-155.98,0.000262,31]
[357160275,1743820239420,-155.98,0.000262,31]
[357160276,1743820239429,-2078.7336861,0.00026245,6]
[357160277,1743820239439,-4358.62,0.000265,14]
[357160278,1743820239449,-501.013133,0.000265,2]
[357160279,1743820239459,-1719.77,0.000266,14]
[357160280,1743820239468,-155.98,0.000266,31]
[357160281,1743820239477,-155.98,0.000266,31]
[357160282,1743820239487,-2078.7336861,0.00026866,7]
[357160283,1743820239497,-2000.0,0.00027,2]
[357160284,1743820239507,-754.89455395,0.00027,2]
[357160285,1743820239517,-3647.70683188,0.00027,2]
[357160286,1743820239526,-338.61110198,0.00027,2]
[357160287,1743820239535,-250000.0,0.00027,2]
[357160288,1743820239544,-904.8,0.00027,2]
[357160289,1743820239554,-904.799999,0.00027,2]
[357160290,1743820239564,-500.0,0.00027,2]
[357160291,1743820239573,-292.52901384,0.00027186,120]
[357160292,1743820239583,-250.0,0.00027195,101]
[357160293,1743820239592,-1000.0,0.00027295,2]
[357160294,1743820239602,-1000.0,0.00027295,2]
[357160295,1743820239611,-1000.0,0.00027295,2]
[357160296,1743820239620,-200.0,0.000273,120]
[357160297,1743820239630,-151.0,0.000273,7]
[357160298,1743820239639,-151.0,0.000273,7]
[357160299,1743820239653,-500.0,0.00027397,14]
[357160300,1743820239665,-500.0,0.00027397,14]
[357160301,1743820239674,-500.0,0.00027397,14]
[357160302,1743820239683,-500.0,0.00027397,14]
[357160303,1743820239693,-500.0,0.00027397,14]
[357160304,1743820239702,-500.0,0.00027397,14]
[357160305,1743820239712,-500.0,0.00027397,14]
[357160306,1743820239721,-500.0,0.00027397,14]
[357160307,1743820239731,-500.0,0.00027397,14]
[357160308,1743820239742,-475.52417949,0.00027397,14]
[357160309,1743820239752,-151.0,0.00027397,7]
[357160310,1743820239761,-218.595231,0.00027397,7]
[357160311,1743820239770,-218.595231,0.00027397,7]
[357160312,1743820239779,-365.6882087,0.00027397,120]
[357160313,1743820239789,-1000.0,0.00027397,5]
[357160314,1743820239799,-1000.0,0.00027397,5]
[357160323,1743820239947,-1000.0,0.00027397,5]
[357160325,1743820239956,-1000.0,0.00027397,5]
[357160327,1743820239966,-1000.0,0.00027397,5]
[357160329,1743820239975,-346.68640854,0.00027397,5]
[357160331,1743820239986,-156.091953,0.00027397,7]
[357160333,1743820239995,-151.0,0.00027397,7]
[357160335,1743820240005,-151.0,0.00027397,7]
[357160337,1743820240014,-500.0,0.00027397,2]
[357160339,1743820240023,-500.0,0.00027397,2]
[357160341,1743820240032,-5067.565676,0.00027397,7]
[357160343,1743820240041,-5067.565676,0.00027397,7]
[357160345,1743820240051,-186.981754,0.00027397,7]
[357160347,1743820240060,-151.0,0.00027397,7]
[357160349,1743820240069,-158.0,0.00027397,10]
[357160351,1743820240079,-200.541645,0.00027397,7]
[357160353,1743820240088,-151.0,0.00027397,7]
[357160355,1743820240099,-500.0,0.00027397,5]
[357160357,1743820240108,-200.0,0.00027473,5]
[357160359,1743820240117,-2078.7336861,0.00027486,7]
[357160361,1743820240127,-44873.90650541,0.000275,2]
[357160363,1743820240136,-210343.61665091,0.000275,2]
[357160372,1743820240210,-167.0,0.0002589,2]
[357160374,1743820240219,-313.180004,0.000275,2]
[357160603,1743821432690,-507.72181042,0.00020369,2]
[357160605,1743821432702,-781.25,0.00021426,2]
[357160606,1743821432714,-3044.24076261,0.00021426,2]
[357160642,1743821446816,-1368.71753193,0.00021426,2]
[357160697,1743822631891,-696.26282189,0.000204,2]
[357160698,1743822631901,-261.6650439,0.000205,2]
[357160699,1743822631998,-1638.3349561,0.000205,2]
[357160700,1743822632008,-419.20823938,0.00021338,2]
[357160701,1743822632019,-160.0,0.00021347,2]
[357160702,1743822632028,-301.0,0.0002143,2]
[357160703,1743822632038,-453.425806,0.00021904,2]
[357160704,1743822632048,-781.25,0.0002278,2]
[357160705,1743822632058,-8045.97990692,0.00022787,2]
[357160706,1743822632067,-793.25934816,0.00022793,3]
[357160707,1743822632077,-2394.72539675,0.00022793,3]
[357160708,1743822632086,-516.55926636,0.0002282,2]
[357160709,1743822632095,-500.0,0.0002282,2]
[357160710,1743822632105,-514.44273932,0.0002282,2]
[357160712,1743822632114,-500.0,0.0002282,2]
[357160714,1743822632123,-513.65784587,0.0002282,2]
[357160716,1743822632133,-500.0,0.0002282,2]
[357160718,1743822632142,-550.07791192,0.0002282,2]
[357160720,1743822632151,-531.26905892,0.0002282,2]
[357160721,1743822632160,-500.0,0.0002282,2]
[357160722,1743822632170,-516.32199572,0.0002282,2]
[357160723,1743822632179,-508.91179682,0.0002282,2]
[357160724,1743822632188,-500.0,0.0002282,2]
[357160725,1743822632198,-509.36793228,0.0002282,2]
[357160726,1743822632207,-500.0,0.0002282,2]
[357160727,1743822632217,-596.73732153,0.0002282,2]
[357160728,1743822632226,-549.53628557,0.0002282,2]
[357160729,1743822632235,-527.05485536,0.0002282,2]
[357160730,1743822632244,-10000.0,0.00022821,2]
[357160731,1743822632254,-1385.8224574,0.000229,4]
[357160732,1743822632263,-1385.8224574,0.00023486,4]
[357160733,1743822632272,-500.0,0.0002372,3]
[357160734,1743822632282,-792.61295321,0.00023722,2]
[357160735,1743822632291,-529.18199982,0.00023843,2]
[357160736,1743822632302,-602.0005586,0.00023843,2]
[357160737,1743822632312,-500.0,0.00023843,2]
[357160738,1743822632321,-537.42,0.00023843,2]
[357160739,1743822632331,-524.17648527,0.00023843,2]
[357160740,1743822632342,-526.70067878,0.00023843,2]
[357160741,1743822632353,-500.0,0.00023843,2]
[357160742,1743822632362,-522.37681233,0.00023843,2]
[357160743,1743822632372,-541.84299161,0.00023843,2]
[357160744,1743822632381,-619.27565052,0.00023843,2]
[357160745,1743822632391,-628.08690291,0.00023843,2]
[357160746,1743822632400,-523.7263871,0.00023843,2]
[357160747,1743822632410,-570.66274303,0.00023843,2]
[357160748,1743822632421,-523.13233756,0.00023843,2]
[357160749,1743822632430,-587.8036482,0.00023843,2]
[357160750,1743822632439,-614.77413064,0.00023843,2]
[357160751,1743822632449,-516.15716518,0.00023843,2]
[357160752,1743822632458,-532.98220782,0.00023843,2]
[357160753,1743822632468,-495.50006868,0.00023843,2]
[357160754,1743822632477,-521.99628541,0.00023843,2]
[357160755,1743822632487,-534.03104252,0.00023843,2]
[357160756,1743822632496,-516.36208859,0.00023843,2]
[357160757,1743822632505,-500.0,0.00023843,2]
[357160758,1743822632515,-586.03534634,0.00023843,2]
[357160759,1743822632524,-539.19450619,0.00023843,2]
[357160760,1743822632534,-591.57283525,0.00023843,2]
[357160761,1743822632544,-516.12963143,0.00023843,2]
[357160762,1743822632554,-623.17415406,0.00023843,2]
[357160763,1743822632564,-534.32339996,0.00023843,2]
[357160764,1743822632575,-500.0,0.00023844,2]
[357160765,1743822632585,-500.22752621,0.00023844,2]
[357160766,1743822632595,-190.30793791,0.00023844,2]
[357160767,1743822632605,-150.177,0.00023846,2]
[357160768,1743822632615,-150.185,0.00023846,2]
[357160769,1743822632625,-150.262,0.00023846,2]
[357160770,1743822632635,-338.13344038,0.00023871,2]
[357160771,1743822632644,-406.08450378,0.00023875,2]
[357160772,1743822632654,-500.0,0.00023875,2]
[357160773,1743822632663,-500.0,0.00023875,2]
[357160774,1743822632672,-501.6160403,0.00023875,2]
[357160775,1743822632682,-500.0,0.00023973,2]
[357160776,1743822632692,-153.23452189,0.00023979,2]
[357160777,1743822632701,-200.0,0.00023979,2]
[357160778,1743822632710,-526.4747258,0.00023993,2]
[357160779,1743822632719,-528.9110789,0.00023993,2]
[357160780,1743822632729,-568.49718283,0.00023993,2]
[357160781,1743822632740,-555.91157859,0.00023993,2]
[357160782,1743822632749,-526.89934701,0.00023993,2]
[357160783,1743822632758,-554.18921842,0.00023993,2]
[357160784,1743822632767,-535.23465582,0.00023993,2]
[357160785,1743822632776,-527.15686663,0.00023993,2]
[357160786,1743822632785,-528.75362489,0.00023993,2]
[357160787,1743822632795,-500.0,0.00023993,2]
[357160788,1743822632805,-547.81770168,0.00023993,2]
[357160789,1743822632815,-629.54224999,0.00023993,2]
[357160790,1743822632824,-558.34275188,0.00023993,2]
[357160791,1743822632834,-643.59705706,0.00023993,2]
[357160792,1743822632843,-522.30238848,0.00023993,2]
[357160793,1743822632853,-546.3617152,0.00023993,2]
[357160794,1743822632862,-538.85050298,0.00023993,2]
[357160795,1743822632871,-521.359808,0.00023993,2]
[357160796,1743822632881,-510.62264952,0.00023993,2]
[357160797,1743822632890,-506.01907081,0.00023993,2]
[357160798,1743822632899,-534.67881143,0.00023993,2]
[357160799,1743822632909,-523.40035565,0.00023993,2]
[357160800,1743822632918,-522.4945328,0.00023993,2]
[357160801,1743822632928,-500.0,0.00023993,2]
[357160802,1743822632938,-515.78126663,0.00023994,2]
[357160803,1743822632947,-501.33440767,0.00024072,2]
[357160804,1743822632957,-1385.8224574,0.00024072,5]
[357160805,1743822632966,-249.40250713,0.00024117,2]
[357160806,1743822632976,-500.0,0.00024267,2]
[357160807,1743822632985,-500.0,0.00024541,2]
[357160808,1743822632995,-200.0,0.00024658,15]
[357160809,1743822633004,-1385.8224574,0.00024659,5]
[357160810,1743822633013,-500.0,0.00024815,2]
[357160811,1743822633023,-434.76165566,0.000249,2]
[357160812,1743822633092,-544.07834434,0.000249,2]
[357160813,1743822633102,-623.0177025,0.00025,2]
[357160851,1743822637752,-527.53907765,0.0002282,2]
[357160853,1743822637762,-584.46789199,0.0002282,2]
[357160854,1743822637771,-1376.9822975,0.00025,2]
[357160855,1743822637780,-500.0,0.00025089,2]
[357160856,1743822637789,-1385.8224574,0.00025245,5]
[357160857,1743822637798,-500.0,0.00025363,2]
[357160858,1743822637807,-250.0,0.000254,100]
[357160859,1743822637816,-500.0,0.00025637,2]
[357160860,1743822637825,-1385.8224574,0.00025831,6]
[357160861,1743822637834,-500.0,0.00025911,2]
[357160862,1743822637844,-2000.0,0.00026,2]
[357160863,1743822637853,-792.61295319,0.00026033,2]
[357160864,1743822637862,-500.0,0.00026185,2]
[357160865,1743822637872,-1385.8224574,0.00026417,6]
[357160866,1743822637881,-500.0,0.00026459,2]
[357160867,1743822637890,-279.4232554,0.00026675,4]
[357160868,1743822637899,-645.92240263,0.00026733,2]
[357160869,1743822637908,-904.799999,0.00027,2]
[357160870,1743822637918,-1385.8224574,0.00027003,7]
[357160871,1743822637927,-170.0,0.00027185,2]
[357160872,1743822637936,-224.08372474,0.00027189,2]
[357160873,1743822637946,-80698.3785683,0.0002719,2]
[357160888,1743822642984,-1322.87761158,0.0002719,2]
[357160956,1743823831992,-300.0,0.00023999,2]
[357160958,1743823832002,-773.36140284,0.00024,2]
[357160963,1743823832047,-2999.999995,0.00024,2]
[357160964,1743823832106,-374.05366051,0.00024,2]
[357160965,1743823832164,-2187.92261834,0.00024,2]
[357160976,1743823840214,-1400.71100295,0.00024,2]
[357161032,1743825032291,-1272.44625344,0.000239,5]
[357161033,1743825032301,-500.0,0.00023973,2]
[357161034,1743825032311,-500.0,0.00023973,2]
[357161035,1743825032320,-475.64908814,0.00023999,3]
[357161098,1743826238228,-1470.70503053,0.000229,4]
[357161099,1743826238238,-160.0,0.00022987,2]
[357161100,1743826238247,-1014.1045203,0.00022994,2]
[357161101,1743826238256,-537.07450173,0.00022997,3]
[357161102,1743826238266,-1906.48030198,0.00022997,3]
[357161103,1743826238275,-3290.92190202,0.00022999,2]
[357161141,1743826243395,-944.07945578,0.00022999,2]
[357161142,1743826243506,-999.38107724,0.00022999,2]
[357161192,1743826246581,-282.96415856,0.00022999,2]
[357161194,1743826246591,-81.42240301,0.00023486,4]
[357161391,1743827432716,-1477.3549773,0.0001928,2]
[357161499,1743827438373,-1522.6450227,0.0001928,2]
[357161500,1743827438383,-2444.05367433,0.0002,2]
[357161501,1743827438394,-594.45971491,0.00020299,2]
[357161502,1743827438404,-500.0,0.00020373,2]
[357161503,1743827438413,-3000.0,0.00020376,2]
[357161504,1743827438422,-151.0,0.00020387,2]
[357161505,1743827438432,-156.39638145,0.00020387,2]
[357161506,1743827438442,-300.0,0.00020397,2]
[357161507,1743827438452,-268.53725087,0.00020398,3]
[357161508,1743827438461,-953.24015099,0.00020398,3]
[357161509,1743827438473,-500.0,0.00020398,2]
[357161510,1743827438483,-631.50211486,0.00020398,2]
[357161511,1743827438492,-532.62098305,0.00020398,2]
[357161512,1743827438502,-500.0,0.00020398,2]
[357161514,1743827438511,-500.0,0.00020398,2]
[357161515,1743827438521,-554.28620081,0.00020398,2]
[357161516,1743827438531,-292.357216,0.00020398,2]
[357161517,1743827438540,-500.0,0.00020398,2]
[357161518,1743827438550,-392.061841,0.00020398,2]
[357161519,1743827438560,-392.061841,0.00020398,2]
[357161520,1743827438570,-392.061841,0.00020398,2]
[357161521,1743827438580,-392.061841,0.00020398,2]
[357161522,1743827438590,-500.0,0.00020398,2]
[357161523,1743827438600,-500.0,0.00020398,2]
[357161524,1743827438609,-500.0,0.00020398,2]
[357161525,1743827438619,-507.181493,0.00020398,2]
[357161526,1743827438628,-500.0,0.00020398,2]
[357161527,1743827438638,-500.0,0.00020398,2]
[357161528,1743827438647,-500.0,0.00020398,2]
[357161529,1743827438657,-500.0,0.00020398,2]
[357161530,1743827438667,-515.55770608,0.00020398,2]
[357161531,1743827438677,-525.93244709,0.00020398,2]
[357161532,1743827438687,-513.24194911,0.00020398,2]
[357161533,1743827438696,-500.0,0.00020398,2]
[357161534,1743827438706,-527.53183418,0.00020398,2]
[357161535,1743827438716,-504.48800468,0.00020398,2]
[357161536,1743827438725,-500.0,0.00020399,2]
[357161537,1743827438735,-500.0,0.00020399,2]
[357161538,1743827438745,-500.0,0.00020399,2]
[357161539,1743827438755,-513.90249801,0.00020399,2]
[357161540,1743827438764,-500.0,0.00020399,2]
[357161541,1743827438773,-514.65307837,0.00020399,2]
[357161542,1743827438783,-500.0,0.00020399,2]
[357161543,1743827438793,-500.0,0.00020399,2]
[357161544,1743827438802,-500.0,0.00020399,2]
[357161545,1743827438812,-225.95126713,0.00020399,2]
[357161546,1743827438822,-151.0,0.00020399,2]
[357161547,1743827438832,-151.0,0.00020399,2]
[357161548,1743827438846,-151.0,0.00020399,2]
[357161549,1743827438855,-151.0,0.00020399,2]
[357161550,1743827438865,-151.0,0.00020399,2]
[357161551,1743827438875,-500.0,0.00020399,2]
[357161552,1743827438885,-500.0,0.00020399,2]
[357161553,1743827438895,-500.0,0.00020399,2]
[357161554,1743827438905,-512.17622181,0.00020399,2]
[357161555,1743827438915,-522.44774992,0.00020399,2]
[357161556,1743827438925,-500.0,0.00020399,2]
[357161557,1743827438936,-151.0,0.00020399,2]
[357161558,1743827438945,-151.0,0.00020399,2]
[357161559,1743827438955,-191.613965,0.00020399,2]
[357161560,1743827438965,-500.0,0.00020399,2]
[357161561,1743827438975,-508.28681601,0.00020399,2]
[357161562,1743827438984,-516.14486297,0.00020399,2]
[357161563,1743827438994,-511.23686692,0.00020399,2]
[357161564,1743827439003,-510.67337134,0.00020399,2]
[357161565,1743827439013,-494.84614159,0.00020399,2]
[357161566,1743827439023,-163.25411742,0.00020399,2]
[357161567,1743827439032,-4607.19899,0.00020399,2]
[357161568,1743827439041,-4607.19899,0.00020399,2]
[357161569,1743827439051,-4607.19899,0.00020399,2]
[357161570,1743827439060,-4607.19899,0.00020399,2]
[357161571,1743827439070,-4607.19899,0.00020399,2]
[357161572,1743827439081,-4607.19899,0.00020399,2]
[357161573,1743827439090,-517.54468736,0.00020399,2]
[357161574,1743827439100,-4607.19899,0.00020399,2]
[357161575,1743827439109,-4607.19899,0.00020399,2]
[357161576,1743827439119,-4607.19899,0.00020399,2]
[357161577,1743827439128,-4607.19899,0.00020399,2]
[357161578,1743827439138,-151.0,0.00020399,2]
[357161579,1743827439147,-151.0,0.00020399,2]
[357161580,1743827439157,-151.0,0.00020399,2]
[357161581,1743827439166,-151.0,0.00020399,2]
[357161582,1743827439175,-468.14199316,0.00020399,2]
[357161583,1743827439184,-151.0,0.00020399,2]
[357161584,1743827439206,-151.0,0.00020399,2]
[357161585,1743827439216,-151.0,0.00020399,2]
[357161586,1743827439225,-151.0,0.00020399,2]
[357161587,1743827439235,-151.0,0.00020399,2]
[357161588,1743827439244,-151.0,0.00020399,2]
[357161589,1743827439254,-151.0,0.00020399,2]
[357161590,1743827439264,-287.023671,0.00020399,2]
[357161591,1743827439273,-507.94268925,0.00020399,2]
[357161592,1743827439283,-5701.02,0.00020399,2]
[357161593,1743827439293,-870.825274,0.00020399,2]
[357161594,1743827439302,-870.825274,0.00020399,2]
[357161595,1743827439312,-870.825274,0.00020399,2]
[357161596,1743827439322,-870.825274,0.00020399,2]
[357161597,1743827439331,-870.825274,0.00020399,2]
[357161598,1743827439340,-870.825274,0.00020399,2]
[357161599,1743827439350,-870.825274,0.00020399,2]
[357161600,1743827439360,-870.825274,0.00020399,2]
[357161601,1743827439371,-870.825274,0.00020399,2]
[357161602,1743827439380,-870.825274,0.00020399,2]
[357161603,1743827439390,-646.02631078,0.00020399,2]
[357161640,1743827446610,-151.0,0.00020398,2]
[357161641,1743827446620,-151.0,0.00020398,2]
[357161642,1743827446630,-151.0,0.00020398,2]
[357161643,1743827446640,-151.0,0.00020398,2]
[357161644,1743827446649,-151.0,0.00020398,2]
[357161645,1743827446659,-186.947617,0.00020398,2]
[357161646,1743827446668,-151.0,0.00020398,2]
[357161647,1743827446678,-136.15148505,0.00020398,2]
[357161648,1743827446690,-14.84851495,0.00020398,2]
[357161649,1743827446699,-151.0,0.00020398,2]
[357161650,1743827446708,-151.0,0.00020398,2]
[357161651,1743827446718,-933.71061653,0.00020399,2]
[357161652,1743827446727,-224.79896322,0.00020399,2]
[357161653,1743827446737,-870.825274,0.00020399,2]
[357161654,1743827446747,-870.825274,0.00020399,2]
[357161655,1743827446756,-870.825274,0.00020399,2]
[357161656,1743827446765,-870.825274,0.00020399,2]
[357161657,1743827446774,-870.825274,0.00020399,2]
[357161659,1743827446783,-870.825274,0.00020399,2]
[357161660,1743827446793,-870.825274,0.00020399,2]
[357161661,1743827446802,-299.22095022,0.00020399,2]
[357161662,1743827446814,-506.43904978,0.00020399,2]
[357161663,1743827446823,-254.08388,0.00020399,2]
[357161664,1743827446832,-392.061841,0.00020399,2]
[357161665,1743827446846,-392.061841,0.00020399,2]
[357161666,1743827446855,-392.061841,0.00020399,2]
[357161667,1743827446864,-392.061841,0.00020399,2]
[357161668,1743827446874,-392.061841,0.00020399,2]
[357161669,1743827446884,-392.061841,0.00020399,2]
[357161670,1743827446893,-392.061841,0.00020399,2]
[357161671,1743827446903,-392.061841,0.00020399,2]
[357161672,1743827446913,-392.061841,0.00020399,2]
[357161673,1743827446922,-392.061841,0.00020399,2]
[357161674,1743827446931,-392.061841,0.00020399,2]
[357161675,1743827446942,-392.061841,0.00020399,2]
[357161676,1743827446951,-392.061841,0.00020399,2]
[357161677,1743827446960,-392.061841,0.00020399,2]
[357161678,1743827446969,-392.061841,0.00020399,2]
[357161679,1743827446979,-392.061837,0.00020399,2]
[357161680,1743827446988,-234.18964447,0.00020399,2]
[357161681,1743827446997,-153.81437,0.000204,2]
[357161682,1743827447007,-153.430912,0.000204,2]
[357161683,1743827447016,-231.219482,0.000204,2]
[357161684,1743827447025,-151.0,0.000204,2]
[357161685,1743827447035,-151.0,0.000204,2]
[357161686,1743827447044,-151.0,0.000204,2]
[357161687,1743827447054,-151.0,0.000204,2]
[357161688,1743827447064,-151.0,0.000204,2]
[357161689,1743827447073,-151.0,0.000204,2]
[357161690,1743827447082,-151.0,0.000204,2]
[357161691,1743827447091,-151.0,0.000204,2]
[357161692,1743827447101,-151.0,0.000204,2]
[357161693,1743827447110,-194.001974,0.000204,2]
[357161694,1743827447119,-151.0,0.000204,2]
[357161695,1743827447128,-176.025934,0.000204,2]
[357161696,1743827447138,-151.0,0.000204,2]
[357161697,1743827447147,-151.0,0.000204,2]
[357161698,1743827447157,-284.937943,0.000204,2]
[357161699,1743827447169,-525.20647183,0.000204,2]
[357161752,1743828632681,-3000.0,0.0001928,2]
[357161753,1743828632691,-300.0,0.00019373,2]
[357161754,1743828632700,-10500.7383804,0.00019374,2]
[357161755,1743828632710,-215.5361204,0.00019398,2]
[357161756,1743828632719,-419.20823938,0.00019559,2]
[357161757,1743828632728,-160.0,0.00019559,2]
[357161758,1743828632738,-527.17322486,0.00020371,2]
[357161759,1743828632748,-500.0,0.00020371,2]
[357161760,1743828632757,-523.54756855,0.00020371,2]
[357161761,1743828632767,-10000.0,0.00020372,2]
[357161762,1743828632777,-500.0,0.00020373,2]
[357161763,1743828632787,-500.0,0.00020373,2]
[357161764,1743828632797,-500.0,0.00020373,2]
[357161765,1743828632806,-2478.47709207,0.00020376,2]
[357161766,1743828632818,-521.52290793,0.00020376,2]
[357161767,1743828632827,-369.48,0.00020388,3]
[357161768,1743828632837,-247.11462344,0.00020388,2]
[357161769,1743828632846,-151.0,0.00020388,2]
[357161770,1743828632856,-400.0,0.00020388,2]
[357161772,1743828632867,-517.02391672,0.00020395,2]
[357161774,1743828632876,-500.0,0.00020395,2]
[357161776,1743828632885,-500.0,0.00020395,2]
[357161778,1743828632894,-293.11194141,0.00020395,2]
[357161780,1743828632903,-500.0,0.00020395,2]
[357161781,1743828632912,-305.1152919,0.00020395,2]
[357161784,1743828632921,-500.0,0.00020395,2]
[357161785,1743828632931,-500.0,0.00020395,2]
[357161786,1743828632939,-285.38421713,0.00020395,2]
[357161787,1743828632948,-500.0,0.00020396,2]
[357161788,1743828632957,-141.63497762,0.00020396,2]
[357161806,1743828640928,-374.29375829,0.00020396,2]
[357161807,1743828640937,-389.77620931,0.00020396,2]
[357161808,1743828640947,-500.0,0.00020396,2]
[357161809,1743828640956,-500.0,0.00020396,2]
[357161810,1743828640966,-500.0,0.00020396,2]
[357161811,1743828640975,-500.0,0.00020396,2]
[357161812,1743828640985,-500.0,0.00020396,2]
[357161813,1743828640995,-44.4514594,0.00020396,2]
[357161853,1743828646670,-455.5485406,0.00020396,2]
[357161854,1743828646681,-351.3492157,0.00020396,2]
[357161855,1743828646691,-65.898154,0.00020396,2]
[357161856,1743828646703,-434.101846,0.00020396,2]
[357161857,1743828646714,-92.868154,0.00020396,2]
[357161908,1743829831947,-3000.0,0.00018896,2]
[357161909,1743829831958,-3000.0,0.0001928,2]
[357161910,1743829831967,-373.18169328,0.00020173,2]
[357161923,1743829837788,-46.0265461,0.00020173,2]
[357161924,1743829837799,-685.82091564,0.00020284,2]
[357161925,1743829837808,-300.0,0.00020369,2]
[357161926,1743829837818,-500.0,0.0002037,2]
[357161927,1743829837827,-558.06935062,0.0002037,2]
[357161928,1743829837837,-500.0,0.0002037,2]
[357161929,1743829837847,-533.98893065,0.0002037,2]
[357161930,1743829837867,-500.0,0.0002037,2]
[357161931,1743829837877,-500.0,0.0002037,2]
[357161932,1743829837887,-500.0,0.0002037,2]
[357161933,1743829837898,-500.0,0.00020371,2]
[357161934,1743829837908,-500.0,0.00020371,2]
[357161935,1743829837918,-300.0,0.00020371,2]
[357161936,1743829837928,-500.0,0.00020371,2]
[357161937,1743829837937,-500.0,0.00020371,2]
[357161938,1743829837947,-165.53141332,0.00020371,2]
[357161939,1743829837957,-500.0,0.00020371,2]
[357161940,1743829837967,-500.0,0.00020371,2]
[357161941,1743829837977,-500.0,0.00020371,2]
[357161942,1743829837987,-500.0,0.00020371,2]
[357161943,1743829837996,-515.870007,0.00020371,2]
[357161944,1743829838006,-500.0,0.00020371,2]
[357161945,1743829838016,-500.0,0.00020371,2]
[357161946,1743829838026,-500.0,0.00020371,2]
[357161947,1743829838036,-153.18114383,0.00020371,2]
[357161948,1743829838046,-533.07114222,0.00020371,2]
[357161949,1743829838056,-500.0,0.00020371,2]
[357161950,1743829838066,-246.10797211,0.00020371,2]
[357161951,1743829838076,-559.17316308,0.00020371,2]
[357161952,1743829838086,-500.0,0.00020371,2]
[357161953,1743829838095,-366.19319578,0.00020371,2]
[357161954,1743829838105,-500.0,0.00020371,2]
[357161955,1743829838115,-500.0,0.00020371,2]
[357161956,1743829838125,-500.0,0.00020371,2]
[357161957,1743829838135,-529.28468969,0.00020371,2]
[357161958,1743829838144,-500.0,0.00020371,2]
[357161959,1743829838154,-500.0,0.00020371,2]
[357161960,1743829838164,-500.0,0.00020371,2]
[357161961,1743829838175,-500.0,0.00020371,2]
[357161962,1743829838185,-500.0,0.00020371,2]
[357161963,1743829838195,-500.0,0.00020371,2]
[357161964,1743829838204,-477.10467972,0.00020371,2]
[357161965,1743829838214,-184.17124775,0.00020371,2]
[357161996,1743829840077,-315.82875225,0.00020371,2]
[357161998,1743829840087,-362.84518177,0.00020371,2]
[357162000,1743829840099,-137.15481823,0.00020371,2]